bitfinex/quotes_SOLUSD_20240716
["timestamp","ask_amount","ask_price","bid_price","bid_amount"]
[1721163957415,14.93,160.46,160.45,45.0]
[1721163958303,6.2306,160.5,160.45,51.2324]
[1721163958506,14.93,160.47,160.45,51.2324]
[1721163959588,14.93,160.47,160.45,52.47870259]
[1721163959790,14.93,160.48,160.45,52.47870259]
[1721163960204,14.93,160.48,160.45,45.0]
[1721163960412,14.93,160.47,160.45,45.0]
[1721163960707,6.2298,160.52,160.46,16.82600269]
[1721163960891,14.93,160.49,160.47,45.0]
[1721163961086,14.93,160.5,160.47,45.0]
[1721163961293,14.93,160.48,160.47,45.0]
[1721163961697,14.93,160.48,160.44,15.2696]
[1721163961900,14.93,160.47,160.45,51.2324]
[1721163962719,6.231,160.49,160.45,45.0]
[1721163962927,14.93,160.46,160.45,45.0]
[1721163963403,14.93,160.46,160.44,6.2328]
[1721163963404,14.93,160.46,160.43,21.8156]
[1721163963596,21.6613,160.48,160.43,21.8156]
[1721163963923,14.93,160.44,160.43,21.8156]
[1721163965405,14.93,160.44,160.43,66.8156]
[1721163965608,14.93,160.44,160.4,22.525]
[1721163965609,14.93,160.44,160.4,31.7872]
[1721163965801,14.93,160.41,160.4,38.0216]
[1721163966115,14.93,160.42,160.41,6.2338]
[1721163966717,14.93,160.43,160.42,6.2335]
[1721163967318,14.93,160.43,160.41,6.2339]
[1721163967523,14.93,160.42,160.41,6.2339]
[1721163967815,14.93,160.42,160.41,51.2339]
[1721163968110,14.93,160.42,160.41,45.0]
[1721163968509,14.93,160.42,160.37,15.5885]
[1721163968714,14.93,160.4,160.38,6.2349]
[1721163969020,14.93,160.41,160.38,7.48170322]
[1721163969312,14.93,160.4,160.37,21.8239]
[1721163969517,6.2333,160.43,160.37,21.8239]
[1721163969518,14.93,160.39,160.37,21.8239]
[1721163969817,14.93,160.39,160.38,6.2351]
[1721163970013,14.93,160.4,160.38,6.2351]
[1721163970211,14.93,160.39,160.38,6.2351]
[1721163970418,14.93,160.39,160.38,51.2351]
[1721163970620,14.93,160.41,160.4,6.2344]
[1721163973102,14.93,160.41,160.39,21.8211]
[1721163975611,14.93,160.43,160.41,6.2339]
[1721163975816,14.93,160.43,160.4,6.2343]
[1721163976017,14.93,160.43,160.41,45.0]
[1721163977720,6.2326,160.45,160.41,45.0]
[1721163977912,14.93,160.43,160.41,45.0]
[1721163981030,14.93,160.44,160.4,45.0]
[1721163981205,14.93,160.44,160.4,46.24656606]
[1721163981715,6.2309,160.49,160.44,6.2327]
[1721163981916,14.93,160.48,160.45,46.2462803]
[1721163982230,14.93,160.48,160.46,1.2462674]
[1721163983127,6.2309,160.49,160.46,1.2462674]
[1721163983345,14.93,160.48,160.46,1.2462674]
[1721163984427,14.93,160.48,160.45,45.0]
[1721163984613,21.1614,160.48,160.45,45.0]
[1721163984818,14.93,160.47,160.44,45.0]
[1721163985020,21.162,160.46,160.43,45.0]
[1721163985348,14.93,160.44,160.4,15.5856]
[1721163985636,14.93,160.42,160.4,15.5856]
[1721163985808,14.93,160.42,160.38,22.0809]
[1721163986317,14.93,160.42,160.39,6.2347]
[1721163986827,14.93,160.41,160.39,6.2347]
[1721163987215,14.93,160.41,160.4,45.0]
[1721163988434,14.93,160.41,160.4,51.2344]
[1721163988616,14.93,160.42,160.4,51.2344]
[1721163989338,14.93,160.43,160.4,51.2344]
[1721163992033,14.93,160.43,160.39,21.8213]
[1721163992342,14.93,160.41,160.39,21.8213]
[1721163992651,14.93,160.42,160.39,21.8213]
[1721163993547,14.93,160.42,160.4,6.2342]
[1721163993752,0.5,160.45,160.41,51.234]
[1721163993929,14.93,160.43,160.41,51.234]
[1721163994133,14.93,160.42,160.41,45.0]
[1721163994333,14.93,160.42,160.41,6.234]
[1721163994529,14.93,160.43,160.41,6.234]
[1721163995336,14.93,160.44,160.41,6.234]
[1721163997090,6.2321,160.46,160.42,1.24664986]
[1721163997358,14.93,160.44,160.42,46.24654087]
[1721163997558,14.93,160.45,160.42,46.24654087]
[1721163997731,6.7316,160.48,160.43,6.2332]
[1721163997931,14.93,160.45,160.42,51.2335]
[1721163998131,14.93,160.44,160.42,45.0]
[1721163998765,14.93,160.43,160.42,45.0]
[1721163999145,14.93,160.44,160.42,45.0]
[1721164000168,14.93,160.44,160.42,46.24657436]
[1721164000671,0.5,160.47,160.43,6.2332]
[1721164000870,14.93,160.45,160.43,7.47970411]
[1721164001073,14.93,160.45,160.43,7.47972145]
[1721164001243,14.93,160.45,160.42,52.47992669]
[1721164002054,14.93,160.45,160.42,46.24652669]
[1721164003044,6.2325,160.45,160.42,46.24652669]
[1721164003246,6.2325,160.45,160.4,6.2341]
[1721164003247,14.93,160.43,160.41,51.2339]
[1721164003470,14.93,160.44,160.42,1.24660217]
[1721164004257,14.93,160.44,160.41,51.2339]
[1721164004463,6.2324,160.45,160.41,51.2339]
[1721164004774,14.93,160.43,160.41,45.0]
[1721164005353,14.93,160.43,160.41,51.2339]
[1721164007273,14.93,160.43,160.41,52.48051495]
[1721164008076,14.93,160.43,160.42,6.2336]
[1721164008400,14.93,160.43,160.42,51.2336]
[1721164008889,14.93,160.44,160.42,51.2336]
[1721164009600,20.5,160.47,160.43,7.47977564]
[1721164009774,20.0,160.47,160.43,7.47977564]
[1721164010478,14.93,160.45,160.43,7.47977564]
[1721164010995,14.93,160.47,160.45,6.2323]
[1721164011203,14.93,160.47,160.45,7.47861991]
[1721164011685,0.5,160.49,160.45,7.47861991]
[1721164011982,14.93,160.47,160.45,7.47861991]
[1721164012776,14.93,160.47,160.45,1.24631991]
[1721164013085,14.93,160.47,160.45,45.0]
[1721164013270,26.231,160.49,160.44,51.2328]
[1721164013482,14.93,160.47,160.45,1.24628616]
[1721164013674,26.231,160.49,160.45,1.24628616]
[1721164013875,14.93,160.47,160.45,1.24628616]
[1721164014075,14.93,160.46,160.44,45.0]
[1721164014493,14.93,160.45,160.4,15.5858]
[1721164014694,14.93,160.43,160.41,6.2339]
[1721164015488,14.93,160.42,160.41,6.2339]
[1721164015798,14.93,160.42,160.4,21.82]
[1721164015976,14.93,160.41,160.38,15.8458]
[1721164016298,14.93,160.39,160.38,22.0808]
[1721164017494,14.93,160.4,160.39,6.2348]
[1721164019215,14.93,160.41,160.39,6.2348]
[1721164019500,14.93,160.41,160.39,7.4816184]
[1721164019797,14.93,160.4,160.38,22.0809]
[1721164019996,14.93,160.4,160.38,7.4819623]
[1721164020293,14.93,160.4,160.38,6.2351]
[1721164020711,14.93,160.4,160.38,1.24686243]
[1721164020873,14.93,160.39,160.35,6.236]
[1721164021079,14.93,160.37,160.35,6.236]
[1721164021378,14.93,160.38,160.36,6.2359]
[1721164021592,14.93,160.38,160.37,6.2355]
[1721164022180,2.183121,160.38,160.37,51.2355]
[1721164022976,2.183121,160.38,160.37,45.0]
[1721164023786,2.183121,160.38,160.37,51.2355]
[1721164024379,2.183121,160.38,160.37,45.0]
[1721164024581,2.183121,160.38,160.36,15.5895]
[1721164024994,14.93,160.37,160.36,15.5895]
[1721164025287,14.93,160.37,160.36,45.0]
[1721164026020,14.93,160.37,160.34,22.7805]
[1721164026324,0.5,160.39,160.23,292.0036]
[1721164026325,14.93,160.35,160.31,6.2375]
[1721164026607,14.93,160.33,160.32,6.2375]
[1721164027800,14.93,160.33,160.32,51.2375]
[1721164027995,14.93,160.34,160.32,51.2375]
[1721164028507,15.43,160.33,160.3,15.595]
[1721164028713,14.93,160.31,160.3,15.595]
[1721164028923,14.93,160.31,160.27,15.5982]
[1721164029088,14.93,160.29,160.27,21.8375]
[1721164029712,14.93,160.29,160.28,6.239]
[1721164029901,0.5,160.36,160.29,6.2386]
[1721164030087,14.93,160.33,160.3,1.2474377]
[1721164030406,14.93,160.33,160.31,21.8321]
[1721164031398,14.93,160.33,160.31,15.5943]
[1721164031990,0.5,160.32,160.29,51.2385]
[1721164032209,14.93,160.3,160.28,15.5971]
[1721164033503,14.93,160.3,160.28,16.84474656]
[1721164033708,14.93,160.31,160.28,23.08354656]
[1721164034011,14.93,160.31,160.29,52.48614456]
[1721164034200,14.93,160.31,160.29,45.0]
[1721164034504,14.93,160.31,160.28,21.8361]
[1721164034810,14.93,160.31,160.29,46.24762872]
[1721164035508,6.2372,160.33,160.29,46.24762872]
[1721164035709,14.93,160.32,160.3,1.247541]
[1721164035909,14.93,160.32,160.29,46.24752516]
[1721164036097,21.1676,160.32,160.29,46.24752516]
[1721164036801,14.93,160.32,160.29,46.24752516]
[1721164037103,14.93,160.32,160.29,45.0]
[1721164037582,14.93,160.32,160.29,46.24753565]
[1721164040205,21.1676,160.32,160.29,46.24753565]
[1721164040409,21.1676,160.32,160.25,31.7676]
[1721164040410,14.93,160.3,160.25,31.7676]
[1721164040710,14.93,160.28,160.26,6.2398]
[1721164041801,6.7382,160.31,160.26,6.2398]
[1721164042127,14.93,160.29,160.26,6.2398]
[1721164042317,14.93,160.29,160.27,45.0]
[1721164043317,14.93,160.29,160.27,51.2394]
[1721164043498,14.93,160.29,160.27,45.0]
[1721164049633,14.93,160.29,160.25,31.7676]
[1721164049806,0.5,160.3,160.24,6.2403]
[1721164050008,14.93,160.26,160.24,6.2403]
[1721164050520,14.93,160.25,160.24,6.2403]
[1721164050899,14.93,160.25,160.22,15.6029]
[1721164050900,14.93,160.25,160.23,6.241]
[1721164051102,14.93,160.25,160.23,7.48907535]
[1721164051495,14.93,160.25,160.23,7.4890521]
[1721164051914,14.93,160.26,160.23,7.4890521]
[1721164052136,14.93,160.25,160.22,21.8443]
[1721164052404,14.93,160.25,160.23,52.48896786]
[1721164052609,14.93,160.24,160.22,15.6029]
[1721164053100,14.93,160.24,160.22,21.8442]
[1721164055125,14.93,160.23,160.22,21.8442]
[1721164055326,14.93,160.23,160.22,66.8442]
[1721164057103,14.93,160.23,160.2,16.2118]
[1721164057301,6.2414,160.22,160.19,0.8171819]
[1721164057510,14.93,160.2,160.19,0.8171819]
[1721164057719,15.43,160.2,160.19,0.8171819]
[1721164058116,14.93,160.2,160.19,0.8171819]
[1721164058307,15.43,160.2,160.19,0.8171819]
[1721164058927,21.6721,160.2,160.19,0.8171819]
[1721164059118,6.2417,160.22,160.19,0.8171819]
[1721164059321,14.93,160.2,160.19,0.8171819]
[1721164061114,0.5,160.23,160.19,0.8171819]
[1721164061320,14.93,160.2,160.19,0.8171819]
[1721164061929,14.93,160.2,160.19,45.8171819]
[1721164062131,14.93,160.2,160.19,0.8171819]
[1721164064017,14.93,160.22,160.19,7.0596819]
[1721164064227,14.93,160.21,160.19,0.8171819]
[1721164064739,14.93,160.21,160.19,7.0596819]
[1721164065543,14.93,160.21,160.19,0.8171819]
[1721164066121,14.93,160.21,160.19,7.0596819]
[1721164066338,14.93,160.22,160.2,6.2421]
[1721164066518,14.93,160.22,160.19,0.8171819]
[1721164066838,14.93,160.21,160.19,0.8171819]
[1721164067016,14.93,160.22,160.19,0.8171819]
[1721164067213,6.2418,160.21,160.19,0.8171819]
[1721164067417,14.93,160.22,160.19,0.8171819]
[1721164068213,14.93,160.22,160.19,7.0596819]
[1721164069047,6.2421,160.2,160.19,0.8171819]
[1721164069345,14.93,160.2,160.19,0.8171819]
[1721164069751,6.2419,160.21,160.19,0.8171819]
[1721164069919,14.93,160.21,160.19,0.8171819]
[1721164070728,0.5,160.23,160.19,0.8171819]
[1721164070925,14.93,160.22,160.19,0.8171819]
[1721164071126,14.93,160.21,160.19,45.8171819]
[1721164072173,14.93,160.23,160.2,6.2421]
[1721164073019,14.93,160.23,160.19,45.8171819]
[1721164073020,14.93,160.22,160.19,45.8171819]
[1721164073224,14.93,160.22,160.2,1.24828681]
[1721164073442,14.93,160.22,160.19,45.8171819]
[1721164074051,14.93,160.21,160.19,0.8171819]
[1721164074238,15.43,160.2,160.19,0.8171819]
[1721164074423,14.93,160.2,160.19,0.8171819]
[1721164074828,21.1721,160.2,160.19,0.8171819]
[1721164077834,0.5,160.23,160.19,0.8171819]
[1721164078029,14.93,160.2,160.19,0.8171819]
[1721164081038,0.5,160.27,160.19,2.06564986]
[1721164081262,14.93,160.24,160.19,0.8171819]
[1721164081566,14.93,160.24,160.21,21.8459]
[1721164082437,14.93,160.23,160.21,21.8459]
[1721164083163,14.93,160.24,160.21,21.8459]
[1721164084183,14.93,160.24,160.21,15.6042]
[1721164084691,14.93,160.24,160.19,15.7471819]
[1721164084692,14.93,160.22,160.19,0.8171819]
[1721164084886,21.1721,160.2,160.19,0.8171819]
[1721164085183,21.6721,160.2,160.19,0.8171819]
[1721164085791,14.93,160.2,160.19,0.8171819]
[1721164086261,21.6721,160.2,160.19,0.8171819]
[1721164087383,15.43,160.2,160.19,0.8171819]
[1721164087700,21.6721,160.2,160.19,0.8171819]
[1721164088090,15.43,160.2,160.19,0.8171819]
[1721164088803,21.6721,160.2,160.19,0.8171819]
[1721164088984,20.0,160.21,160.19,0.8171819]
[1721164089196,6.7411,160.23,160.19,0.8171819]
[1721164089399,14.93,160.21,160.19,0.8171819]
[1721164089803,14.93,160.21,160.19,7.0596819]
[1721164090099,14.93,160.21,160.2,6.2421]
[1721164090308,14.93,160.21,160.2,45.0]
[1721164090672,14.93,160.21,160.19,52.0596819]
[1721164090876,14.93,160.21,160.19,45.8171819]
[1721164091076,14.93,160.2,160.19,45.8171819]
[1721164092102,14.93,160.2,160.19,0.8171819]
[1721164092513,14.93,160.21,160.19,7.0596819]
[1721164092797,14.93,160.21,160.19,0.8171819]
[1721164093177,6.7411,160.23,160.19,2.06557686]
[1721164093376,14.93,160.21,160.19,0.8171819]
[1721164093583,6.7411,160.23,160.19,0.8171819]
[1721164093584,14.93,160.22,160.19,8.30791691]
[1721164093799,14.93,160.22,160.2,45.0]
[1721164094586,14.93,160.21,160.2,45.0]
[1721164094806,14.93,160.21,160.19,0.8171819]
[1721164094981,14.93,160.2,160.19,0.8171819]
[1721164095796,21.1721,160.2,160.19,0.8171819]
[1721164098395,41.1721,160.2,160.19,0.8171819]
[1721164100399,34.93,160.2,160.19,0.8171819]
[1721164100605,20.0,160.2,160.19,0.8171819]
[1721164100999,34.93,160.2,160.19,0.8171819]
[1721164102418,0.5,160.24,160.19,0.8171819]
[1721164102583,14.93,160.21,160.19,0.8171819]
[1721164105097,14.93,160.21,160.19,7.0596819]
[1721164105303,14.93,160.22,160.2,45.0]
[1721164106112,14.93,160.23,160.2,45.0]
[1721164107015,21.171,160.23,160.2,45.0]
[1721164107326,14.93,160.22,160.19,45.8171819]
[1721164107883,14.93,160.22,160.19,52.0595819]
[1721164109826,14.93,160.22,160.19,45.8171819]
[1721164110128,14.93,160.22,160.19,0.8171819]
[1721164110693,14.93,160.24,160.2,1.24835552]
[1721164110927,14.93,160.25,160.21,7.48985177]
[1721164111092,14.93,160.25,160.22,6.2413]
[1721164111295,14.93,160.26,160.23,52.48905282]
[1721164111624,0.5,160.28,160.24,7.48845244]
[1721164111913,14.93,160.26,160.24,1.24805244]
[1721164112220,59.72,160.32,160.24,7.48865244]
[1721164112221,6.2387,160.29,160.24,7.48865244]
[1721164112515,14.93,160.28,160.25,45.0]
[1721164112892,21.169,160.28,160.25,45.0]
[1721164113092,21.6697,160.27,160.24,45.0]
[1721164113401,6.2398,160.26,160.24,45.0]
[1721164113717,21.1695,160.27,160.23,45.0]
[1721164114098,21.1695,160.27,160.23,51.241]
[1721164114810,21.1695,160.27,160.24,1.24797632]
[1721164115115,14.93,160.29,160.24,7.48857632]
[1721164115329,20.0,160.28,160.25,45.0]
[1721164115628,34.93,160.28,160.25,45.0]
[1721164116211,26.2391,160.28,160.25,45.0]
[1721164116530,41.1691,160.28,160.25,45.0]
[1721164117318,14.93,160.27,160.25,45.0]
[1721164117510,14.93,160.27,160.24,45.0]
[1721164119914,21.1695,160.27,160.24,45.0]
[1721164120115,14.93,160.26,160.23,45.0]
[1721164120422,15.43,160.26,160.23,45.0]
[1721164121606,14.93,160.26,160.23,45.0]
[1721164122102,20.0,160.28,160.24,15.6011]
[1721164122305,14.93,160.28,160.25,45.0]
[1721164122702,20.5,160.31,160.25,45.0]
[1721164123043,21.1687,160.29,160.25,51.2402]
[1721164123211,14.93,160.29,160.26,7.48768065]
[1721164123519,14.93,160.3,160.26,7.48768065]
[1721164123728,15.43,160.3,160.26,7.48768065]
[1721164123898,14.93,160.3,160.26,7.48768065]
[1721164124294,21.1683,160.3,160.26,7.48768065]
[1721164125322,21.1683,160.3,160.26,1.24788065]
[1721164125620,6.2383,160.3,160.27,1.24780068]
[1721164125838,21.168,160.31,160.27,52.48720068]
[1721164126127,21.168,160.31,160.27,46.24780068]
[1721164127112,14.93,160.29,160.27,46.24780068]
[1721164128025,21.1683,160.3,160.27,46.24780068]
[1721164129422,14.93,160.29,160.27,45.0]
[1721164131426,14.93,160.3,160.27,52.48712975]
[1721164131626,14.93,160.3,160.27,46.24772975]
[1721164131921,14.93,160.29,160.27,46.24772975]
[1721164133614,14.93,160.28,160.25,6.52148836]
[1721164133923,6.2409,160.24,160.19,16.4231819]
[1721164134125,14.93,160.21,160.2,6.52946518]
[1721164135218,21.1718,160.21,160.2,6.52946518]
[1721164135528,14.93,160.21,160.2,6.52946518]
[1721164135825,15.43,160.21,160.2,6.52946518]
[1721164137408,14.93,160.21,160.2,6.52946518]
[1721164138007,0.5,160.25,160.2,6.52946518]
[1721164138208,14.93,160.23,160.2,6.52946518]
[1721164139019,14.93,160.23,160.2,12.77156518]
[1721164139222,0.5,160.27,160.21,45.0]
[1721164139518,14.93,160.24,160.22,6.2411]
[1721164139837,14.93,160.25,160.21,46.24829167]
[1721164140335,14.93,160.25,160.22,6.2411]
[1721164140520,14.93,160.25,160.23,45.0]
[1721164141717,14.93,160.25,160.24,6.2406]
[1721164141934,14.93,160.26,160.24,45.0]
[1721164142121,14.93,160.26,160.23,45.0]
[1721164142325,14.93,160.25,160.23,45.0]
[1721164143637,14.93,160.25,160.23,51.2409]
[1721164143933,14.93,160.26,160.24,6.2406]
[1721164144510,14.93,160.26,160.23,51.2408]
[1721164145139,6.2387,160.29,160.24,6.2405]
[1721164145330,34.93,160.28,160.25,51.24]
[1721164146336,34.93,160.28,160.26,6.2397]
[1721164146337,14.93,160.28,160.26,6.2397]
[1721164146537,14.93,160.29,160.27,45.0]
[1721164146917,14.93,160.28,160.26,45.0]
[1721164147122,14.93,160.28,160.25,45.0]
[1721164147550,14.93,160.28,160.25,46.24786356]
[1721164147750,14.93,160.28,160.25,52.48806356]
[1721164147922,6.2383,160.3,160.26,6.2397]
[1721164148247,14.93,160.28,160.25,51.2401]
[1721164148946,14.93,160.28,160.26,6.2395]
[1721164149143,34.93,160.29,160.27,45.0]
[1721164149321,26.239,160.29,160.27,45.0]
[1721164149522,14.93,160.28,160.25,6.2401]
[1721164149733,14.93,160.28,160.26,52.48760802]
[1721164149939,34.93,160.29,160.26,52.48760802]
[1721164150140,12.315485,160.29,160.26,52.48760802]
[1721164150340,27.245485,160.29,160.26,52.48760802]
[1721164151430,27.245485,160.29,160.27,1.247753]
[1721164151831,14.93,160.29,160.27,1.247753]
[1721164153450,21.1692,160.28,160.26,45.0]
[1721164153625,6.2388,160.29,160.26,45.0]
[1721164154260,21.1688,160.29,160.26,45.0]
[1721164156639,14.93,160.28,160.26,45.0]
[1721164158250,21.1688,160.29,160.26,45.0]
[1721164159643,6.2382,160.31,160.26,51.2398]
[1721164159856,14.93,160.29,160.26,51.2398]
[1721164160425,34.93,160.3,160.26,51.2398]
[1721164160951,41.1683,160.3,160.26,45.0]
[1721164161330,14.93,160.29,160.26,45.0]
[1721164163541,0.5,160.34,160.29,6.2384]
[1721164163741,6.2368,160.34,160.3,46.24748431]
[1721164163954,21.1668,160.34,160.3,46.24748431]
[1721164164256,6.2363,160.35,160.3,61.17748431]
[1721164164458,14.93,160.36,160.31,14.93]
[1721164164640,14.93,160.36,160.32,52.48468108]
[1721164164835,14.93,160.36,160.32,46.24728555]
[1721164165035,6.2364,160.35,160.32,46.24728555]
[1721164165344,14.93,160.36,160.33,1.24731799]
[1721164165746,21.1662,160.36,160.33,1.24731799]
[1721164166153,26.2363,160.35,160.32,46.2472829]
[1721164166373,6.2367,160.34,160.32,45.0]
[1721164166552,21.1667,160.34,160.31,45.0]
[1721164166753,41.1664,160.35,160.31,1.24735243]
[1721164166969,41.1664,160.35,160.31,7.48515243]
[1721164167251,41.1664,160.35,160.32,45.0]
[1721164168147,20.0,160.35,160.32,51.2372]
[1721164168338,34.93,160.35,160.32,45.0]
[1721164168542,34.93,160.35,160.31,46.24735243]
[1721164168850,20.0,160.35,160.31,52.48515243]
[1721164169054,14.93,160.35,160.31,52.48515243]
[1721164169261,21.1664,160.35,160.31,46.24735243]
[1721164170156,21.1664,160.35,160.31,45.0]
[1721164170673,21.1664,160.35,160.32,1.24730354]
[1721164171868,21.1664,160.35,160.31,45.0]
[1721164172348,6.2364,160.35,160.31,45.0]
[1721164172554,21.1664,160.35,160.31,45.0]
[1721164173264,21.1664,160.35,160.31,51.2378]
[1721164174168,14.93,160.35,160.31,51.2378]
[1721164174371,14.93,160.36,160.32,7.48475743]
[1721164174567,14.93,160.36,160.33,46.24720897]
[1721164175070,6.2352,160.38,160.33,52.48420897]
[1721164175269,34.93,160.37,160.33,52.48420897]
[1721164175683,14.93,160.37,160.33,52.48420897]
[1721164175893,6.2349,160.39,160.34,6.2366]
[1721164176186,14.93,160.37,160.35,46.24703859]
[1721164177953,14.93,160.37,160.35,52.48323859]
[1721164178160,14.93,160.39,160.35,51.2362]
[1721164178663,21.1648,160.39,160.35,51.2362]
[1721164179065,14.93,160.38,160.35,45.0]
[1721164179978,14.93,160.37,160.35,45.0]
[1721164181179,0.5,160.37,160.16,6.248]
[1721164181480,6.1896,160.4,160.32,6.2375]
[1721164181481,14.93,160.34,160.32,6.2375]
[1721164182264,14.93,160.33,160.31,15.5941]
[1721164182472,14.93,160.33,160.31,23.07931837]
[1721164182974,14.93,160.34,160.31,23.07931837]
[1721164183172,14.93,160.35,160.32,6.2374]
[1721164183373,14.93,160.35,160.32,7.48469135]
[1721164183577,14.93,160.35,160.33,45.0]
[1721164183756,14.93,160.34,160.32,45.0]
[1721164185359,14.93,160.33,160.32,45.0]
[1721164185877,14.93,160.33,160.31,15.5941]
[1721164186081,14.93,160.32,160.31,15.5941]
[1721164186267,14.93,160.34,160.31,60.5941]
[1721164186575,14.93,160.34,160.32,45.0]
[1721164186981,14.93,160.34,160.32,51.2374]
[1721164188787,14.93,160.34,160.31,15.5941]
[1721164188972,14.93,160.33,160.31,15.5941]
[1721164189162,14.93,160.32,160.31,15.5941]
[1721164189357,14.93,160.32,160.31,66.832]
[1721164189562,14.93,160.33,160.31,66.832]
[1721164192384,14.93,160.33,160.31,60.5941]
[1721164194085,14.93,160.33,160.31,66.8319]
[1721164195193,14.93,160.34,160.32,51.2375]
[1721164200589,14.93,160.34,160.33,6.2371]
[1721164200791,14.93,160.34,160.33,51.2371]
[1721164200995,14.93,160.34,160.33,45.0]
[1721164201289,14.93,160.34,160.31,15.5941]
[1721164201290,14.93,160.34,160.31,21.8319]
[1721164201506,14.93,160.32,160.3,6.52650007]
[1721164201677,14.93,160.31,160.3,6.52650007]
[1721164203293,14.93,160.31,160.3,51.52650007]
[1721164205785,15.43,160.31,160.27,6.2393]
[1721164205983,14.93,160.29,160.27,6.2393]
[1721164207271,14.93,160.28,160.26,12.75536827]
[1721164207476,14.93,160.27,160.26,6.51566827]
[1721164207982,6.2383,160.3,160.26,12.75546827]
[1721164208195,14.93,160.28,160.27,6.2394]
[1721164208396,0.5,160.36,160.32,6.2374]
[1721164208696,14.93,160.35,160.31,21.8319]
[1721164208893,14.93,160.34,160.32,45.0]
[1721164209390,14.93,160.33,160.32,45.0]
[1721164209795,14.93,160.33,160.32,51.2375]
[1721164209990,6.236,160.36,160.32,51.2375]
[1721164210189,14.93,160.34,160.32,51.2375]
[1721164210894,6.7351,160.39,160.32,46.24737543]
[1721164211079,14.93,160.37,160.34,6.2366]
[1721164211278,20.0,160.36,160.33,7.48418515]
[1721164211504,34.93,160.36,160.34,45.0]
[1721164211689,34.93,160.36,160.32,45.0]
[1721164212286,14.93,160.33,160.28,15.5972]
[1721164212491,20.0,160.36,160.27,15.6839]
[1721164212492,6.238,160.31,160.27,15.6839]
[1721164212800,14.93,160.28,160.27,15.6839]
[1721164213303,14.93,160.28,160.26,6.51566827]
[1721164213493,14.93,160.27,160.26,6.51566827]
[1721164213684,14.93,160.27,160.22,31.9412]
[1721164214002,14.93,160.24,160.23,12.75249319]
[1721164214199,14.93,160.24,160.22,31.9412]
[1721164214384,15.43,160.23,160.19,16.4231819]
[1721164214696,14.93,160.2,160.19,22.6654819]
[1721164217277,41.6721,160.2,160.19,0.8171819]
[1721164217707,20.5,160.2,160.19,0.8171819]
[1721164217901,41.1721,160.2,160.19,0.8171819]
[1721164218406,20.0,160.2,160.19,0.8171819]
[1721164218983,0.5,160.21,160.19,0.8171819]
[1721164219187,12.8036,160.24,160.19,0.8171819]
[1721164219385,6.2402,160.26,160.19,47.06558829]
[1721164219599,0.5,160.25,160.19,62.67148829]
[1721164219811,6.2398,160.26,160.2,6.242]
[1721164220100,6.7402,160.25,160.21,46.24822573]
[1721164220287,6.2402,160.25,160.21,1.24822573]
[1721164220481,6.7397,160.27,160.19,76.7605819]